Cogmind - Beta 12 @@@ ROGUE MODE // 2023.03.31 @ 15:15:01 Player: Exp. Geonium Core Result: Destroyed by D-53 Grenadier with Mini Grenade Launcher Performance ------------- Evolutions (0) 0 Regions Visited (2) 400 Robots Destroyed (17) 85 Value Destroyed (372) 372 Prototype IDs (0) 0 Alien Tech Used (0) 0 Bonus (0) 0 TOTAL SCORE: 857 Bonus ------- None Cogmind --------- Core Integrity 0/250 Matter 300/300 Energy 100/100 System Corruption 0% Temperature Cool (0) Movement Core (1350) Ox26 Location -10/Mines Parts ------- > --- POWER (1) -------- (None) > --- PROPULSION (2) --- (None) > --- UTILITY (2) ------ Huge Storage Unit Improved Targeting Computer > --- WEAPON (2) ------- (None) > --- INVENTORY (25) --- Ion Engine Aluminum Leg Aluminum Leg Flight Unit Flight Unit Flight Unit VTOL Module VTOL Module VTOL Module VTOL Module High-capacity Matter Pod (122) Structural Scanner Sensor Array Improved Targeting Computer Improved Targeting Computer Weapon Shielding Weapon Shielding Medium Laser Small Laser Light EM Pulse Cannon Grenade Launcher Peak State ------------ > --- POWER ------------ Ion Engine > --- PROPULSION ------- Light Treads Light Treads > --- UTILITY ---------- Huge Storage Unit Improved Targeting Computer > --- WEAPON ----------- Small Laser Light EM Pulse Cannon > --- INVENTORY -------- Ion Engine Aluminum Leg Aluminum Leg Flight Unit Flight Unit Flight Unit VTOL Module VTOL Module VTOL Module VTOL Module High-capacity Matter Pod Sensor Array Improved Targeting Computer Improved Targeting Computer Weapon Shielding Weapon Shielding Medium Laser Small Laser Light EM Pulse Cannon [Rating: 11] Favorites ----------- Power Ion Engine Engine Ion Engine Propulsion Light Treads Treads Light Treads Leg Aluminum Leg Wheel Wheel Utility Huge Storage Unit Storage Huge Storage Unit Processor Improved Targeting Computer Weapon Small Laser Energy Gun Small Laser Energy Cannon Light EM Pulse Cannon Build | -11 -10 -10 ------- Run | Jun Mat Min Slots Evolved . | . . . Power . | . . . Propulsion . | . . . Utility . | . . . Weapon . | . . . Parts Attached 6 | . 6 . Power . | . . . Engine . | . . . Core . | . . . Reactor . | . . . Propulsion 3 | . 3 . Treads 2 | . 2 . Leg . | . . . Wheel 1 | . 1 . Hover . | . . . Flight . | . . . Utility 2 | . 2 . Device . | . . . Storage 1 | . 1 . Processor 1 | . 1 . Hackware . | . . . Protection . | . . . Artifact . | . . . Weapon 1 | . 1 . Energy Gun . | . . . Energy Cannon 1 | . 1 . Ballistic Gun . | . . . Ballistic Cannon . | . . . Launcher . | . . . Special Weapon . | . . . Impact Weapon . | . . . Slashing Weapon . | . . . Piercing Weapon . | . . . Special Melee Weapon . | . . . Unidentified Prototypes . | . . . Parts Lost 6 | . 1 5 Power 1 | . . 1 Propulsion 3 | . 1 2 Utility . | . . . Weapon 2 | . . 2 Highest Loss Streak 5 | . 1 5 To Critical Strikes . | . . . Average Slot Usage (%) 96 | . 96 80 Engine 13 | . 14 9 Treads 20 | . 20 23 Leg 3 | . 3 . Wheel 4 | . 4 . Storage 14 | . 14 14 Processor 11 | . 11 14 Energy Gun 22 | . 22 9 Energy Cannon 5 | . 5 9 Naked Turns . | . . . Heaviest Build 90 | 12 90 80 Greatest Support 40 | 20 40 20 Greatest Overweight (x) 8 | . 8 3 Average Overweight (x) 3 | . 3 3 Largest Inventory Capacity 25 | . 25 25 Average Capacity 22 | . 21 25 Most Carried 21 | . 21 21 Average Carried 16 | . 16 21 Final Capacity 25 | 8 25 25 Final Carried 21 | 6 21 21 Class Distribution -------------------- 100% | Mutant Dominant Class ---------------- Mutant | -10/Materials Mutant | -10/Mines Resources | -11 -10 -10 ----------- Run | Jun Mat Min Matter Collected 342 | 188 154 . Remotely . | . . . Salvage Created 666 | . 556 110 Parts 35 | . 29 6 Haulers Intercepted 1 | . 1 . Recyclers Shooed 2 | . 2 . Parts Field Recycled . | . . . Retrieved Matter . | . . . Parts Self-Destructed . | . . . Prevented . | . . . Kills | -11 -10 -10 ------- Run | Jun Mat Min Combat Hostiles Destroyed 14 | . 12 2 Guns 9 | . 9 . Cannons 5 | . 3 2 Classes Destroyed 4 | . 4 . Hauler 1 | . 1 . Recycler 2 | . 2 . Swarmer 6 | . 6 . Grunt 8 | . 6 2 Best Kill Streak 4 | . 4 2 Combat Bots Only 4 | . 4 2 Max Kills in Single Turn 1 | . 1 1 Gunslinging . | . . . Exploded . | . . . Melee . | . . . Uniques/NPCs Destroyed . | . . . Combat | -11 -10 -10 -------- Run | Jun Mat Min Damage Taken 957 | . 430 527 Core 261 | . 108 153 Absorbed by Shields . | . . . Core Remaining (%) 100 | 100 . . Volleys Fired 58 | . 50 8 Largest 2 | . 2 1 Hottest 80 | . 80 56 Shots Fired 95 | . 87 8 Gun 74 | . 74 . Cannon 21 | . 13 8 Launcher . | . . . Special . | . . . Kinetic . | . . . Thermal 74 | . 74 . Explosive . | . . . Electromagnetic 21 | . 13 8 Robot Hit Streak 26 | . 18 26 Robot Miss Streak 3 | . 3 . Penetration Max . | . . . Secondary Targets . | . . . Shots Hit Robots 62 | . 54 8 Core Hits 26 | . 22 4 Critical Kills . | . . . Critical Parts Destroyed . | . . . Critical Strikes . | . . . Melee Attacks . | . . . Impact . | . . . Slashing . | . . . Piercing . | . . . Sneak Attacks . | . . . Combat Hostiles . | . . . Follow-up Attacks . | . . . Damage Inflicted 950 | . 781 169 Guns 453 | . 453 . Cannons 471 | . 302 169 Explosions . | . . . Melee . | . . . Ramming 26 | . 26 . Kinetic . | . . . Thermal 453 | . 453 . Explosive . | . . . Electromagnetic 471 | . 302 169 Impact . | . . . Slashing . | . . . Piercing . | . . . Highest Corruption . | . . . Average Corruption . | . . . Corruption Purged . | . . . Corruption Blocked . | . . . Overload Shots . | . . . Overflow Damage . | . . . Projectiles . | . . . Explosions . | . . . Melee . | . . . Knockbacks . | . . . Impact . | . . . Kinetic . | . . . Secondary . | . . . Self-Inflicted Damage 5 | . 5 . Shots . | . . . Rammed 4 | . 4 . Targets Rammed 4 | . 4 . Kicked . | . . . Crushed . | . . . Highest Temperature 216 | . 216 138 Average Temperature 63 | . 62 74 Received Heat Transfer 171 | . 150 21 Siege Activations . | . . . Robots Corrupted . | . . . Combat Hostiles . | . . . Parts Fried 3 | . 3 . Impact Corruptions . | . . . Robots Melted . | . . . Combat Hostiles . | . . . Parts Melted 2 | . 2 . Heat Transferred 1025 | . 1025 . Parts Sabotaged . | . . . Parts Stolen . | . . . Parts Stripped . | . . . Power Chain Reactions . | . . . Missiles Intercepted . | . . . Alert | -11 -10 -10 ------- Run | Jun Mat Min Peak Influence 219 | . 219 65 Initial . | . . . Average 64 | . 64 41 Maximum Alert Level 1 | . 1 . Low Security (%) 98 | . 98 100 Level 1 1 | . 1 . Level 2 . | . . . Level 3 . | . . . Level 4 . | . . . Level 5 . | . . . High Security . | . . . Max Security . | . . . Squads Dispatched 2 | . 2 . Investigation . | . . . Extermination . | . . . Reinforcement 2 | . 2 . Assault . | . . . Garrison . | . . . Intercept . | . . . Searches Triggered . | . . . Construction Impeded . | . . . Haulers Reinforced . | . . . Active Scanning Responses . | . . . Cargo Convoy Interrupts . | . . . Stealth | -11 -10 -10 --------- Run | Jun Mat Min Distress Signals 1 | . 1 . Communications Jammed . | . . . Distress Signals . | . . . Times Spotted 25 | . 20 5 Peak Tracking Total 4 | . 4 4 Tactical Retreats 2 | . 2 . Traps | -11 -10 -10 ------- Run | Jun Mat Min Traps Triggered . | . . . Indirectly . | . . . Trap Hack Attempts . | . . . Triggered . | . . . Disarmed . | . . . Reprogrammed . | . . . Reused . | . . . Traps Extracted . | . . . Installed . | . . . Triggered . | . . . Machines | -11 -10 -10 ---------- Run | Jun Mat Min Machines Disabled . | . . . Max in Single Turn . | . . . Machines Repaired . | . . . Machines Sabotaged . | . . . Overloaded Fab Kills . | . . . Hacking | -11 -10 -10 --------- Run | Jun Mat Min Machines Accessed 2 | . 2 . Terminals 2 | . 2 . Fabricators . | . . . Repair Stations . | . . . Recycling Units . | . . . Scanalyzers . | . . . Garrison Access . | . . . Total Hacks 5 | . 5 . Successful 2 | . 2 . Failed 3 | . 3 . Catastrophic . | . . . Database Lockouts . | . . . Manual 3 | . 3 . Terminals 5 | . 5 . Fabricators . | . . . Repair Stations . | . . . Recycling Units . | . . . Scanalyzers . | . . . Garrison Access . | . . . Terminal Hacks 1 | . 1 . Robot Analysis 1 | . 1 . Fabricator Hacks . | . . . Repair Station Hacks . | . . . Recycling Unit Hacks . | . . . Scanalyzer . | . . . Garrison Access Hacks . | . . . Unauthorized Hacks 1 | . 1 . Terminals 1 | . 1 . Botnet 1 | . 1 . Fabricators . | . . . Repair Stations . | . . . Recycling Units . | . . . Scanalyzers . | . . . Garrison Access . | . . . Data Cores Recovered . | . . . Used . | . . . Hacking Detections 2 | . 2 . Full Trace Events . | . . . Feedback Events . | . . . Feedback Blocked . | . . . Robot Schematics Acquired . | . . . Robots Built . | . . . Authchips . | . . . Time . | . . . Total Robot Build Rating . | . . . Part Schematics Acquired . | . . . Parts Built . | . . . Authchips . | . . . Time . | . . . Total Part Build Rating . | . . . Parts Repaired . | . . . Time . | . . . Parts Recycled . | . . . Recycled Matter . | . . . Retrieved Matter . | . . . Retrieved Components . | . . . Parts Scanalyzed . | . . . Part Schematics Acquired . | . . . Parts Damaged . | . . . Bothacking | -11 -10 -10 ------------ Run | Jun Mat Min Used RIF Installer . | . . . Robots Hacked . | . . . Non-combat . | . . . Combat . | . . . Robot Hacks Applied . | . . . Relay Couplers Released . | . . . Fabnet Peak Effective % . | . . . Robots Rewired . | . . . Allies Hacked . | . . . Hacks Repelled . | . . . Allies | -11 -10 -10 -------- Run | Jun Mat Min Total Allies . | . . . Largest Group . | . . . Highest-Rated Group . | . . . Highest-Rated Ally . | . . . Total Orders . | . . . Ally Attacks . | . . . Total Damage . | . . . Kills . | . . . Allies Corrupted . | . . . Allies Melted . | . . . Intel | -11 -10 -10 ------- Run | Jun Mat Min Robot Analysis Total 1 | . 1 . Derelict Logs Recovered . | . . . Drone Launches . | . . . Drone Recoveries . | . . . Exploration | -11 -10 -10 ------------- Run | Jun Mat Min Turns Passed 1331 | . 1308 23 Spaces Moved 451 | 1 448 2 Core . | . . . Treads 225 | . 223 2 Legs 93 | 1 92 . Wheels 133 | . 133 . Hover . | . . . Flight . | . . . Fastest Speed 120 | 120 120 400 Average Speed 239 | 120 239 400 Slowest Speed 400 | 120 320 400 Overloaded Moves . | . . . Propulsion Burnouts . | . . . Robots Hopped . | . . . Cave-ins Triggered . | . . . Exploration Rate (%) 22 | 2 59 5 Regions Visited 2 Branch Regions 1 Pre-discovered Areas . | . . . Known Exits Taken . | . . . Unknown Exits Taken 2 | 1 1 . Scrap Searched . | . . . Spaces Dug . | . . . Terrain Destroyed . | . . . Melee . | . . . Projectile . | . . . AOE . | . . . Terrain Rammed . | . . . Walls Destroyed . | . . . Machines Disabled . | . . . Actions | -11 -10 -10 --------- Run | Jun Mat Min Total 601 | . 591 10 Wait 63 | . 63 . Move 449 | . 447 2 Hop . | . . . Pick Up 18 | . 18 . Fast Attach 2 | . 2 . Attach 1 | . 1 . Detach . | . . . Swap 3 | . 3 . Drop 3 | . 3 . Fire 58 | . 50 8 Melee . | . . . Ram 1 | . 1 . Kick . | . . . Crush 3 | . 3 . Escape Stasis . | . . . Rewire . | . . . Trap . | . . . Miscellaneous . | . . . Route ------- -11/Junkyard -10/Materials (discovered 2 exits: [*Mat] / [*Min]) -10/Mines (discovered 1 exit: [*Mat]) History --------- Turn | Location | Event 1 | -11/Junkyard | Discovered new exit (range 0) 1 | -11/Junkyard | Entered Materials 307 | -10/Materials | Build established: Mutant 952 | -10/Materials | Discovered new exit (range 16) 1131 | -10/Materials | Discovered new exit (range 14) 1309 | -10/Materials | Entered Mines 1310 | -10/Mines | Assembled infested the area 1323 | -10/Mines | Discovered new exit (range 10) 1327 | -10/Mines | Core integrity fell below 50% 1332 | -10/Mines | Core integrity fell below 20% 1332 | -10/Mines | Destroyed by D-53 Grenadier with Mini Grenade Launcher Last Messages --------------- 01309_ G-34 Mercenary destroyed. 01310_ ALERT: Infestation in the mines, dispatching Demolisher response squad. 01315_ G-47 Trooper destroyed. 01317_ C-30 ARC bursts open, deploying its payload. 01317_ D-53 Grenadier unfolds itself. 01323_ D-53 Grenadier misfires. 01323_ Sml. Laser destroyed. 01323_ EXIT=FOUND 01324_ Lgt. Treads destroyed. 01324_ Ion Engine destroyed. 01324_ Lgt. EM Pulse Cannon destroyed. 01325_ The unstable cave ceiling collapses. 01325_ D-53 Grenadier misfires. 01327_ U-05 Engineer builds a Wall. 01330_ Lgt. Treads destroyed. 01330_ K-01 Serf collects debris. 01331_ R-06 Scavenger destroyed. 01331_ R-06 Scavenger collects Lgt. Ion Engine. 01332_ U-05 Engineer lays Concrete. Map ----- +----------------------------------------------------+ | ????????????????????????????????????????????? | | ????????????????????????????????????????????? | | ????????????????????????????????????????????? | | ????????????????????????????????????????????? | | ????????????????????????????????????????????? | | ????????????????????????????????????????????? | | ????????????????????????????????????????????? | | ????????????????????????????????????????????? | | ????????????????????????????????????????????? | | ????????????????????????????????????????????? | | ????????????????????????????##??????????????? | | ???????????????????????????? ??????????????? | | ??????????????????????????? ???????????????? | | ??????????????????????????? ???????????????? | | ??????????????????????????? ???????????????? | | ??????????????????????????? #???????????????? | | ??????????????????????????? #???????????????? | | ??????????????????????##### ##??????????????? | | ????????????######???## # ???????????????? | | ???????????# ?## ##??????????????? | | ???????????# # ##?????????????? | | ???????????# #?????????????? | | ?????????????? < gg #?????????????? | | ????????????????????# #?????????????? | | ????????????????????# [#?????????????? | | ????????????????????# @ #?????????????? | | ????????????????????# = =#?????????????? | | ????????????????????# dd% [#?????????????? | | ????????????????????## ##?????????????? | | ?????????????????????## ##r ##??????????????? | | ??????????????????????##??u##???????????????? | | ?????????????????????????? ##???????????????? | | ??????????????????????????%#????????????????? | | ?????????????????????????? #????????????????? | | ?????????????????????????? #????????????????? | | ?????????????????????????? ????????????????? | | ?????????????????????????? ????????????????? | | ??????????????????????????? ????????????????? | | ???????????????????????????k????????????????? | | ??????????????????????????? ????????????????? | | ??????????????????????????? ????????????????? | | ????????????????????????????????????????????? | | ????????????????????????????????????????????? | | ????????????????????????????????????????????? | | ????????????????????????????????????????????? | | ????????????????????????????????????????????? | | ????????????????????????????????????????????? | | ????????????????????????????????????????????? | | ????????????????????????????????????????????? | | ????????????????????????????????????????????? | +----------------------------------------------------+ Best States ------------- Heat Dissipation 25 Energy Generation 10 Energy Capacity 250 Matter Stores 300 Matter Capacity 300 Sight Range 16 Terrain Scan Density 10 Evasion (%) 55 Targeting Accuracy 6 Recoil Reduction 2 Item Schematics ----------------- None Robot Schematics ------------------ None Fabricated ------------ Nothing Alien Tech Used ----------------- None Achievements -------------- None Challenges ------------ None Game ------ Seed SpikedSigixNanovents Manual? 0 Play Time 00:07:24 Cumulative 360.8 hours Start 2023.03.31 @ 15:02:40 End 2023.03.31 @ 15:15:01 Sessions 1 Manual Loads 0 Difficulty Rogue Special Mode None Game No. 410 Rogue 410 Adventurer 0 Explorer 0 Win Type - Total 11 Types 8/0/2/1/0/0/0/0/0 Lore% 80 Gallery% 89 Achievement% 78 Wizard Run 0 Options --------- ASCII 0 Keyboard 0 Movement Numpad Keybinds 0 Fullscreen 1 Font 18/Terminus Map View 76x50 Tactical HUD 1 Map Filters NONE Filters NONE Steam 1 RUN: 7b963e25-e9c5-45eb-a06b-3f3834563a8c